[Event "CCC-IM 2022"]
[Site "Ballerup"]
[Date "2022.05.25"]
[Round "1.1"]
[White "Sahl, Bjarke"]
[Black "Kenneskog, Theodor"]
[Result "1/2-1/2"]
[ECO "B92"]
[WhiteElo "2312"]
[BlackElo "2296"]
[Annotator "TA"]
[PlyCount "120"]
[EventDate "2022.05.25"]
[EventType "tourn"]
[EventCountry "DEN"]
[SourceTitle "playchess.com"]
[Source "ChessBase"]
[SourceQuality "1"]
[TimeControl "5400+30"]

{[%evp 25,120,-91,-77,-82,-49,-153,-77,-109,-115,-112,-105,-100,-103,-131,-117,-93,-100,-213,-194,-206,-205,-181,-159,-232,-212,-213,-218,-202,-217,-212,-223,-225,-226,-227,-212,-212,-201,-190,-160,-178,-114,-125,-103,-133,-135,-135,-131,-147,-146,-138,-145,-146,-142,-159,-4,-47,-47,-47,-47,-48,-48,-62,-49,-49,-40,-40,-26,-26,-26,-26,-26,-56,-26,-26,-26,-26,-26,-26,-26,-26,-16,-24,-6,-26,-16,-26,-26,-26,-26,-26,-26,-26,-26,-26,-26,-40,0]} 1. e4 {[%emt 0:00:13]} c5 {[%emt 0:00:07]} 2. Nf3 {[%emt 0:03:21]} d6 {[%emt 0:00:06]} 3. d4 {[%emt 0:03:17]} cxd4 {[%emt 0:00:06]} 4. Nxd4 {[%emt 0:00:02]} Nf6 {[%emt 0:00:06]} 5. Nc3 {[%emt 0:00:41]} a6 {[%emt 0:00:04]} 6. Be2 {[%emt 0:03:17]} e5 {[%emt 0:00:06]} 7. Nb3 {[%emt 0:00:19]} Be7 {[%emt 0:00:05]} 8. f4 {[%emt 0:03:56]} O-O {[%emt 0:04:54]} 9. O-O {[%emt 0:01:46]} b5 {[%emt 0:00:13]} 10. Kh1 {[%emt 0:05:59]} Bb7 {[%emt 0:00:37]} 11. Bf3 {[%emt 0:00:15]} Nbd7 {[%emt 0:01:26]} 12. a3 {[%emt 0:03:55]} Rc8 {[%emt 0:00:31]} 13. Qe2 {[%emt 0:04:51]} Re8 {[%emt 0:02:34]} 14. Bd2 {[%emt 0:09:23] B92: Sicilian Najdorf: 6 Be2.} Bf8 {[%emt 0:08:46][%cal Od6d5]} 15. Rad1 {[%emt 0:02:34]} ({White should play} 15. fxe5 $1 $15 Nxe5 16. Bg5) 15... Qc7 {[%emt 0:02:34]} (15... d5 $142 $1 16. Qf2 dxe4) 16. Rfe1 {[%emt 0:15:10] Black is better.} exf4 {[%emt 0:09:34]} 17. Bxf4 {[%emt 0:01:30]} Ne5 {[%emt 0:01:37]} 18. Bg5 {[%emt 0:03:27]} Nfd7 {[%emt 0:01:35][%cal Bf6d7,Bd7e5,Be5c4,Bc4a3][%mdl 32] [#]} 19. Bg4 $146 {[%emt 0:12:24]} ({Predecessor:} 19. Nd2 g6 20. Be3 Bg7 21. Bd4 Nc5 22. Qf2 Ne6 23. Bb6 {½-½ (78) Kaza,P (2149)-Grapsa,G (2104) Athens 2003}) 19... Nxg4 {[%emt 0:02:58]} 20. Qxg4 {[%emt 0:00:07]} Ne5 {[%emt 0:00:09]} 21. Qg3 {[%emt 0:01:47]} (21. Qh4 $17) 21... Nc4 $1 $19 {[%emt 0:02:41]} 22. Bc1 {[%emt 0:07:21] [#]} Nxa3 $1 {[%emt 0:02:48][%mdl 512]} 23. Nd4 {[%emt 0:00:10]} g6 {[%emt 0:09:07][%cal Ob5b4]} 24. Bd2 {[%emt 0:08:25]} (24. Rf1 $17 {keeps fighting.}) 24... Nc4 {[%emt 0:05:00]} 25. Bc1 {[%emt 0:00:08]} Bg7 {[%emt 0:01:21][%cal Od6d5]} 26. Nd5 {[%emt 0:01:57]} Bxd5 {[%emt 0:02:33]} 27. exd5 {[%emt 0:00:05]} Nb6 {[%emt 0:00:08]} 28. c3 {[%emt 0:02:37]} Rxe1+ {[%emt 0:07:05]} (28... Nxd5 $2 29. Nf3 Rxe1+ 30. Qxe1) 29. Qxe1 {[%emt 0:00:07]} Qd7 {[%emt 0:00:15]} ({Don't blunder} 29... Nxd5 $2 30. Ne6 Qe7 31. Nxg7 Qxe1+ 32. Rxe1 Kxg7 33. Rd1) 30. Nf3 {[%emt 0:01:29]} Re8 {[%emt 0:07:29]} 31. Qf2 {[%emt 0:00:26]} Qb7 {[%emt 0:02:18]} 32. Bf4 {[%emt 0:00:08]} Rd8 {[%emt 0:05:18]} ({Weaker is} 32... Nxd5 33. Bxd6 Nf6 34. Bc5 $17) (32... Bf8 $19 33. Qg3 Na4) 33. Qh4 {[%emt 0:00:52]} f6 {[%emt 0:00:39]} 34. Be3 {[%emt 0:01:10]} Nc4 {[%emt 0:02:36]} ({Resist} 34... Nxd5 35. Qe4 $18) 35. Bc1 {[%emt 0:00:50]} Re8 {[%emt 0:00:24]} 36. b3 {[%emt 0:00:23]} Ne5 {[%emt 0:00:28]} 37. Nxe5 {[%emt 0:01:42]} Rxe5 {[%emt 0:00:18]} 38. c4 {[%emt 0:00:05]} bxc4 {[%emt 0:00:49]} 39. Qxc4 {[%emt 0:00:09] [#]} Qb5 $2 {[%emt 0:02:57]} (39... f5 $1 $17 {...Re4 is the strong threat.} 40. Rg1 Qxd5 41. Qc8+ Kf7 42. Qxa6 Re4 43. Qa7+ Re7) 40. Bf4 {[%emt 0:00:53]} Qxc4 {[%emt 0:03:42]} 41. bxc4 $15 {[%emt 0:00:05][%mdl 4096] Endgame KRB-KRB} Re4 {[%emt 0:00:08][%csl LRc4,LRf4]} 42. Bxd6 {[%emt 0:00:03]} Rxc4 {[%emt 0:00:05]} 43. Be7 {[%emt 0:00:32] Threatens to win with d6.} Rc7 {[%emt 0:00:46]} 44. d6 {[%emt 0:00:07]} Rd7 {[%emt 0:00:03]} 45. Ra1 {[%emt 0:00:31]} Kf7 {[%emt 0:01:05]} 46. Rxa6 {[%emt 0:01:18]} Bf8 {[%emt 0:00:19]} 47. Bxf8 {[%emt 0:00:13]} Kxf8 $11 {[%emt 0:00:05] KR-KR} 48. h4 {[%emt 0:01:37]} Kf7 {[%emt 0:00:25]} 49. g4 {[%emt 0:01:24]} Ke6 {[%emt 0:00:08]} 50. Kg2 {[%emt 0:00:04]} Rxd6 {[%emt 0:00:08]} 51. Ra7 {[%emt 0:00:11]} Rd7 {[%emt 0:00:35]} 52. Ra5 {[%emt 0:00:14]} Rd4 {[%emt 0:04:22]} 53. Kf3 {[%emt 0:01:17]} h6 {[%emt 0:01:30]} 54. Ra6+ {[%emt 0:01:16]} Ke5 {[%emt 0:01:00]} 55. Ra5+ {[%emt 0:00:09]} Rd5 {[%emt 0:00:17]} 56. Ra3 {[%emt 0:00:11]} h5 {[%emt 0:04:22]} 57. Re3+ {[%emt 0:01:25]} Kd6 {[%emt 0:00:07]} 58. gxh5 {[%emt 0:00:33]} Rxh5 {[%emt 0:00:12] White must now prevent ...g5.} 59. Re4 $1 {[%emt 0:00:21]} Rf5+ {[%emt 0:03:14]} 60. Kg3 {[%emt 0:00:42]} Rh5 {[%emt 0:01:37] Whites escaped into a draw.  Weighted Error Value: White=0.13 (very precise) /Black=0.15 (very precise)} 1/2-1/2

[Event "CCC-IM 2022"]
[Site "Ballerup"]
[Date "2022.05.25"]
[Round "1.2"]
[White "Kistrup, Nicolai"]
[Black "Brynell, Stellan"]
[Result "1-0"]
[ECO "E04"]
[WhiteElo "2306"]
[BlackElo "2401"]
[Annotator "TA"]
[PlyCount "43"]
[EventDate "2022.05.25"]
[EventType "tourn"]
[EventCountry "DEN"]
[SourceTitle "playchess.com"]
[Source "ChessBase"]
[SourceQuality "1"]
[TimeControl "5400+30"]

{[%evp 15,43,18,5,2,29,15,28,22,5,13,20,10,49,7,5,10,3,13,14,0,0,0,5,0,15,0,15,5,597,574]} 1. d4 {[%emt 0:00:03]} Nf6 {[%emt 0:00:12]} 2. c4 {[%emt 0:00:09]} e6 {[%emt 0:00:06]} 3. g3 {[%emt 0:00:12]} d5 {[%emt 0:00:38]} 4. Bg2 {[%emt 0:00:43]} dxc4 {[%emt 0:00:13]} 5. Nf3 {[%emt 0:00:17]} c5 {[%emt 0:00:16]} 6. Qa4+ {[%emt 0:07:58]} Bd7 {[%emt 0:09:06]} 7. Qxc4 {[%emt 0:00:40]} Bc6 {[%emt 0:00:16]} 8. dxc5 {[%emt 0:05:19]} Nbd7 {[%emt 0:00:23]} 9. Be3 {[%emt 0:14:57] E04: Open Catalan: 5 Nf3.} Rc8 {[%emt 0:24:25][%cal Of8c5]} (9... Bd5 $5 {[%cal Rd5c4]} 10. Qa4 Bc6 $11) 10. Nc3 {[%emt 0:19:58] [#]} b6 $146 {[%emt 0:19:17]} ({Predecessor:} 10... Bxc5 11. Bxc5 Bxf3 12. Bxf3 Rxc5 13. Qb4 b6 14. Na4 Rc7 15. Qd6 Nb8 16. Qf4 O-O {1-0 (64) Balog,I (2578)-Harikrishna,P (2725) Chess.com INT 2021}) 11. Rd1 {[%emt 0:13:15] White has an edge.} Bxc5 {[%emt 0:03:16]} 12. Bxc5 {[%emt 0:01:10]} bxc5 {[%emt 0:03:03]} 13. O-O {[%emt 0:06:01]} Qb6 {[%emt 0:00:46]} 14. b3 {[%emt 0:09:38]} Qb4 {[%emt 0:13:57]} 15. Nd2 {[%emt 0:01:56][%cal Bf3d2,Bd2e4,Be4d6][%mdl 32]} Bxg2 {[%emt 0:05:55]} (15... Ne5 {seems wilder.} 16. Qa6 O-O 17. Rc1 Bxg2 18. Kxg2 Nd5) 16. Kxg2 {[%emt 0:00:07]} Nb6 {[%emt 0:02:37]} (16... Ne5 {is interesting.} 17. Qa6 O-O 18. Rc1 Nd5) 17. Qd3 {[%emt 0:09:22][%cal Oa2a3]} (17. Qb5+ {with more complications.} Ke7 18. Qa6 Rhd8 19. Ncb1) 17... O-O {[%emt 0:01:12]} 18. Nce4 {[%emt 0:01:49]} Nxe4 {[%emt 0:01:54]} 19. Nxe4 {[%emt 0:00:57]} h6 {[%emt 0:01:10] Inhibits Ng5.} 20. Qf3 {[%emt 0:03:09]} Rc7 {[%emt 0:05:31]} 21. Nd6 {[%emt 0:02:07]} a5 $2 {[%emt 0:01:47][%mdl 8192] [#]} (21... c4 $11 {and Black is okay.}) 22. a3 $1 {[%emt 0:00:49] Weighted Error Value: White=0.08 (flawless) /Black=0.57} 1-0

[Event "CCC-IM 2022"]
[Site "Ballerup"]
[Date "2022.05.25"]
[Round "1.3"]
[White "Nielsen, Thomas Bach"]
[Black "Casper Yukun Liu"]
[Result "0-1"]
[ECO "D10"]
[WhiteElo "2189"]
[BlackElo "2218"]
[Annotator "TA"]
[PlyCount "68"]
[EventDate "2022.05.25"]
[EventType "tourn"]
[EventCountry "DEN"]
[SourceTitle "playchess.com"]
[Source "ChessBase"]
[SourceQuality "1"]
[TimeControl "5400+30"]

{[%evp 15,68,7,14,8,7,0,2,0,0,-19,-12,-13,0,0,0,0,0,0,0,-20,-18,-43,-38,-55,-65,-88,-83,-107,-29,-49,-37,-40,-9,-9,-18,-20,-23,-458,0,-567,-235,-367,-366,-361,-360,-658,-216,-220,-157,-178,-132,-5628,-4934,-29989,-29990]} 1. d4 {[%emt 0:00:02]} d5 {[%emt 0:00:04]} 2. c4 {[%emt 0:00:21]} c6 {[%emt 0:00:02]} 3. cxd5 {[%emt 0:01:33]} cxd5 {[%emt 0:00:31]} 4. Nf3 {[%emt 0:00:29]} Nf6 {[%emt 0:00:05]} 5. Nc3 {[%emt 0:00:18]} Nc6 {[%emt 0:00:02]} 6. Bf4 {[%emt 0:00:30]} a6 {[%emt 0:00:04]} 7. e3 {[%emt 0:04:26] 7.Rc1 is more fashionable.} Bg4 {[%emt 0:02:26]} 8. Bd3 {[%emt 0:00:48]} e6 {[%emt 0:01:23]} 9. h3 {[%emt 0:00:38] D13: Slav Defence: Exchange variation without ...Bf5.} Bh5 {[%emt 0:00:13]} 10. g4 {[%emt 0:00:34]} Bg6 {[%emt 0:00:07]} 11. Bxg6 {[%emt 0:00:14] The position is equal.} hxg6 {[%emt 0:00:03]} 12. Ne5 {[#]} Nxe5 $146 {[%emt 0:09:11]} ({Predecessor:} 12... Rc8 13. Kf1 Nxe5 14. Bxe5 Nd7 15. Bg3 Nb6 16. Rc1 Bd6 17. Ne2 Bxg3 18. Nxg3 O-O 19. h4 Rxc1 20. Qxc1 Qc8 21. Kg2 Qxc1 22. Rxc1 Rc8 {½-½ (22) Vladimirov,Y (2445)-Gavrikov,V (2365) Moscow 1981}) 13. Bxe5 {[%emt 0:06:05]} Bd6 {[%emt 0:01:44]} 14. Bxd6 Qxd6 {[%emt 0:00:02]} 15. Rc1 {[%emt 0:13:02]} Qb4 {[%emt 0:06:23]} 16. Qe2 {[%emt 0:24:47]} Ne4 {[%emt 0:04:05]} 17. a3 {[%emt 0:03:03]} Qa5 {[%emt 0:00:34]} 18. Kd1 {[%emt 0:04:46]} Nd6 {[%emt 0:05:34][%cal Be4d6,Bd6c4,Bc4b2][%mdl 32]} 19. h4 {[%emt 0:08:30][%cal Bh3h4,Bh4h5][%mdl 32]} Rc8 {[%emt 0:02:28]} 20. h5 {[%emt 0:01:52]} Nc4 {[%emt 0:03:28]} 21. e4 {[%emt 0:02:52]} Qb6 {[%emt 0:07:54] Black is more active.} ({Black should play} 21... dxe4 $1 $17 {White must now prevent ...Qb6.} 22. Nxe4 Qd5) 22. exd5 $11 {[%emt 0:03:35]} Nxb2+ {[%emt 0:06:15]} 23. Ke1 {[%emt 0:03:34]} Na4 {[%emt 0:00:48]} 24. Rh3 {[%emt 0:03:37]} gxh5 {[%emt 0:09:23] Threatening ...0-0.} 25. dxe6 {[%emt 0:04:20]} O-O $36 {[%emt 0:01:04][%mdl 2048] And now ...Rfe8 would win. Black fights for an advantage.} 26. Rxh5 $2 {[%emt 0:09:10][%mdl 8192]} Qxd4 $2 {[%emt 0:09:17]} (26... Rxc3 $2 27. exf7+ Rxf7 28. Qe8+ Rf8 29. Rh8+ Kxh8 30. Qxf8+ Kh7 31. Qf5+ Qg6 32. Rxc3 Nxc3 33. Qe5 $19) (26... Nxc3 $19 27. Qd3 Qxe6+ 28. Re5 Na2 29. Rxc8 Qxc8) 27. Qc2 {[%emt 0:04:14][%mdl 8192] [#]} g6 {[%emt 0:00:05]} (27... fxe6 $142 $1 28. Qe2 Rf7) 28. exf7+ {[%emt 0:00:24]} (28. Rh3 $142) 28... Kg7 $19 {[%emt 0:00:10]} ({And not} 28... Rxf7 29. Qxg6+ Qg7 30. Qg5 (30. Qxg7+ Rxg7 31. Kd2 Rxg4 $11) 30... Nxc3 31. Rxc3 Rxc3 32. Qd8+ Qf8 33. Qg5+ Qg7 34. Qd8+ Qf8 35. Qg5+ Qg7 $11) 29. Rh3 {[%emt 0:00:25]} ({But not} 29. Qxa4 $2 Qxa4 30. Nxa4 Rxc1+ 31. Ke2 gxh5 $19) 29... Rxf7 {[%emt 0:00:31] Threatens to win with ...Nxc3. Chess con chili.} 30. Rd3 {[%emt 0:00:45]} (30. Rd1 Re7+ 31. Kf1 Qc4+ 32. Rdd3) 30... Qxg4 $2 {[%emt 0:06:35]} 31. Rg3 {[%emt 0:00:09]} Qe6+ {[%emt 0:05:07]} 32. Kf1 {[%emt 0:00:02]} Qf6 {[%emt 0:00:32]} (32... Qd6 $19 {( -> ...Qxg3)} 33. Kg1 b5) 33. Rxg6+ {[%emt 0:01:07][%mdl 8192]} (33. Qd2 $17) 33... Qxg6 {[%emt 0:00:18]} 34. Qxa4 {[%emt 0:00:06]} Qd3+ {[%emt 0:01:21] Weighted Error Value: White=1.12/Black=0.51} 0-1

[Event "CCC-IM 2022"]
[Site "Ballerup"]
[Date "2022.05.25"]
[Round "1.4"]
[White "Jacobsen, Mikkel Manosri"]
[Black "Ahlander, Bjorn"]
[Result "0-1"]
[ECO "A46"]
[WhiteElo "2251"]
[BlackElo "2375"]
[Annotator "TA"]
[PlyCount "60"]
[EventDate "2022.05.25"]
[EventType "tourn"]
[EventCountry "DEN"]
[SourceTitle "playchess.com"]
[Source "ChessBase"]
[SourceQuality "1"]
[TimeControl "5400+30"]

{[%evp 17,60,0,0,-16,-13,-23,-26,-30,0,-19,0,0,8,2,6,0,6,14,0,0,4,4,4,-10,-12,-13,-20,-102,-102,-298,-295,-1203,-1187,-1195,-1193,-1136,-1131,-955,-964,-5335,-1184,-29978,-29978,-29987,-29988]} 1. d4 {[%emt 0:00:08] CB} Nf6 {[%emt 0:00:05]} 2. Nf3 {[%emt 0:00:05]} e6 {[%emt 0:00:05]} 3. c4 {[%emt 0:00:04]} d5 {[%emt 0:00:18]} 4. e3 {[%emt 0:00:47]} c5 {[%emt 0:00:20]} 5. Nc3 {[%emt 0:01:35]} Nc6 {[%emt 0:00:07]} 6. cxd5 {[%emt 0:00:47]} exd5 {[%emt 0:00:38]} 7. Be2 {[%emt 0:01:42]} cxd4 {[%emt 0:01:00]} 8. Nxd4 {[%emt 0:00:08]} Bd6 {[%emt 0:00:15]} 9. O-O {[%emt 0:04:22]} O-O {[%emt 0:00:10]} 10. h3 {[%emt 0:09:33] D32: Tarrasch Defence: Sidelines and lines without g3.} a6 {[%emt 0:00:29]} 11. b3 {[%emt 0:03:09]} Re8 {[%emt 0:00:31]} 12. Nf3 {[%emt 0:04:15] [#] Black has an edge.} Bb8 $146 {[%emt 0:05:43]} ({Predecessor:} 12... Bf5 13. Bb2 Bc7 14. Qd2 Qd6 15. Rfd1 Rad8 16. Rac1 h5 17. Bd3 Bg4 18. hxg4 hxg4 19. g3 gxf3 20. Bf1 Bb6 21. Re1 Ng4 22. Bh3 Bxe3 23. Rxe3 Nxe3 {0-1 (23) Gretarsson,H (2561)-Steingrimsson,H (2532) Reykjavik 2015 CBM 166 Extra [CB]}) 13. Ba3 {[%emt 0:03:12]} Be6 {[%emt 0:06:23]} 14. Rc1 {[%emt 0:01:31]} Qc7 {[%emt 0:02:18]} 15. Re1 {[%emt 0:08:54]} Ba7 {[%emt 0:08:02]} 16. Na4 {[%emt 0:11:07]} Ne4 {[%emt 0:03:20][%cal Oe6h3]} 17. Bc5 {[%emt 0:12:16]} Nxc5 {[%emt 0:07:38]} 18. Nxc5 {[%emt 0:01:36][%cal Ob3b4]} Rad8 {[%emt 0:00:04]} 19. Nd4 {[%emt 0:10:11][%cal Oc5b7] Black should prevent Nxb7!} Bb8 {[%emt 0:03:39]} 20. f4 {[%emt 0:00:44][%cal Oe2a6]} Bc8 {[%emt 0:08:08]} 21. Nxa6 {[%emt 0:04:27] Pair of Knights!} Qe7 {[%emt 0:02:00]} 22. Nxc6 {[%emt 0:02:36]} (22. Bb5 $1 $11 {remains equal.} Bxf4 23. exf4 Qxe1+ 24. Qxe1 Rxe1+ 25. Rxe1 Nxd4 26. Nc7) 22... Qxe3+ $17 {[%emt 0:00:37]} 23. Kh1 $2 {[%emt 0:00:37] This move loses the game for White.} (23. Kf1 $17 {was the only defense.} Qxf4+ 24. Bf3 bxc6 25. Nxb8 Qxb8 26. Qd2 (26. Rxe8+ Rxe8 27. Kg1 Bd7 $17)) 23... Bxf4 $19 {[%emt 0:01:05][%cal Oe3g3] ( -> ...Qg3!)} 24. Bh5 $2 {[%emt 0:15:39] [#]} (24. Bf3 Qxc1 25. Qxc1 Bxc1 26. Rxc1 bxc6 27. Nb4) 24... Qg3 $1 {[%emt 0:05:50][%csl Gf4][%cal Rg3h2]} 25. Bxf7+ {[%emt 0:02:26]} Kf8 {[%emt 0:18:17][%csl Gf4][%cal Rg3h2]} 26. Rxe8+ {[%emt 0:00:50]} Rxe8 {[%emt 0:00:05][%csl Gf4][%cal Rg3h2]} 27. Qg1 {[%emt 0:00:43] Against Qh2+} Kxf7 {[%emt 0:00:10]} 28. Rf1 {[%emt 0:00:26]} bxc6 {[%emt 0:01:24]} (28... Bxh3 $142 29. Nd4 bxa6) 29. Rf3 {[%emt 0:00:22] [#]} Bxa6 $1 {[%emt 0:01:12]} 30. Rxg3 {[%emt 0:00:47]} (30. a3 Re1) 30... Bxg3 {[%emt 0:00:12] Weighted Error Value: White=1.24/Black=0.22 (precise)} 0-1

[Event "CCC-IM 2022"]
[Site "Ballerup"]
[Date "2022.05.25"]
[Round "1.5"]
[White "Seegert, Kristian"]
[Black "Rostgaard, Tobias Valentin"]
[Result "1-0"]
[ECO "C50"]
[WhiteElo "2209"]
[BlackElo "2339"]
[Annotator "TA"]
[PlyCount "85"]
[EventDate "2022.05.25"]
[EventType "tourn"]
[EventCountry "DEN"]
[SourceTitle "playchess.com"]
[Source "ChessBase"]
[SourceQuality "1"]
[TimeControl "5400+30"]

{[%evp 16,85,12,11,16,23,22,11,17,9,18,16,19,7,21,13,-3,0,33,0,0,0,23,0,6,0,0,0,0,14,16,-6,-5,-4,0,-48,32,32,32,45,47,73,78,80,95,24,157,141,241,228,283,271,279,269,277,262,266,248,307,287,518,464,505,519,669,656,1195,937,880,872,902,583]} 1. e4 {[%emt 0:00:05]} e5 {[%emt 0:00:36]} 2. Nf3 {[%emt 0:00:29]} Nc6 {[%emt 0:00:13]} 3. Bc4 {[%emt 0:00:11]} Bc5 {[%emt 0:00:32]} 4. O-O {[%emt 0:00:28]} Nf6 {[%emt 0:00:09]} 5. d3 {[%emt 0:00:19]} O-O {[%emt 0:00:16]} 6. Bg5 {[%emt 0:01:12][%cal Bc1g5,Bg5h4,Bh4g3][%mdl 32]} h6 {[%emt 0:00:31]} 7. Bh4 {[%emt 0:00:36]} Be7 {[%emt 0:00:20]} 8. c3 {[%emt 0:03:54]} d6 {[%emt 0:01:09]} 9. Nbd2 {[%emt 0:12:20]} g5 {[%emt 0:04:35][%cal Bg7g5,Bg5g4][%mdl 32] C50: Hungarian Defence and Giuoco Pianissimo.} 10. Bg3 {[%emt 0:00:10] [#]} Na5 $146 {[%emt 0:02:54]} ({Predecessor:} 10... Kg7 11. d4 Nd7 12. d5 Ncb8 13. Ne1 Rh8 14. Be2 Nf6 15. Nd3 Nbd7 16. c4 Nf8 17. c5 {1-0 (45) Yankovsky,R (2455)-Bryant,J (2445) Monterey Park 2013}) 11. Bb5 {[%emt 0:00:45]} g4 {[%emt 0:00:59] The position is equal.} 12. Ne1 {[%emt 0:07:12]} Nh5 {[%emt 0:01:57]} 13. b4 {[%emt 0:02:10]} Nc6 {[%emt 0:00:28]} 14. Nc2 {[%emt 0:00:11]} Bg5 {[%emt 0:02:40]} 15. Nc4 {[%emt 0:11:34]} Ne7 {[%emt 0:07:39]} 16. N4e3 {[%emt 0:01:17]} c6 {[%emt 0:06:54]} 17. Bc4 {[%emt 0:00:53]} d5 {[%emt 0:04:50]} 18. Bb3 {[%emt 0:06:04]} Nxg3 {[%emt 0:05:03]} 19. hxg3 {[%emt 0:02:18]} (19. fxg3 $5 {[%cal Re3g4]} a5 20. bxa5 $11 (20. Nxg4 a4 $11)) 19... f5 {[%emt 0:05:16]} 20. exf5 {[%emt 0:04:29]} h5 {[%emt 0:02:57]} 21. c4 {[%emt 0:11:49]} Bxf5 {[%emt 0:10:25]} 22. Nxf5 {[%emt 0:09:24]} Rxf5 {[%emt 0:01:43]} 23. Ne3 {[%emt 0:00:53]} Bxe3 {[%emt 0:02:52]} 24. fxe3 {[%emt 0:00:04]} Kg7 {[%emt 0:02:41]} 25. Qe2 {[%emt 0:04:29]} (25. cxd5 $11 cxd5 26. Kh2) 25... Qd6 {[%emt 0:06:56]} (25... Qb6 $1 $15) 26. c5 $36 {[%emt 0:02:47][%mdl 2048] White has the initiative.} Qe6 {[%emt 0:05:57]} 27. e4 {[%emt 0:00:39]} Rxf1+ {[%emt 0:01:30]} 28. Rxf1 {[%emt 0:00:09]} Rf8 {[%emt 0:00:26]} 29. Re1 $1 {[%emt 0:05:46]} Ng6 {[%emt 0:00:50] [#]} 30. Qe3 {[%emt 0:00:54]} (30. d4 $1 $16) 30... Qf7 {[%emt 0:00:26]} (30... d4 $1 $11 31. Bxe6 dxe3) 31. d4 $16 {[%emt 0:01:06]} Qf6 {[%emt 0:06:05]} (31... h4 $16) 32. dxe5 $18 {[%emt 0:00:34]} ({Not} 32. exd5 exd4 33. Qe2 d3 $19) 32... Nxe5 {[%emt 0:00:07][%cal Od5d4]} 33. exd5 {[%emt 0:00:39]} Re8 {[%emt 0:00:02][%cal Oe5f3] [#] Threatens to win with ...Nf3+!} 34. Qd2 $1 {[%emt 0:02:41] Black must now prevent d6.} cxd5 {[%emt 0:02:07]} 35. Rf1 {[%emt 0:00:33]} ({Resist} 35. Bxd5 $6 Nf3+ 36. Bxf3 (36. gxf3 Rxe1+ 37. Qxe1 Qd4+ 38. Qf2 Qxd5 $16) 36... Rxe1+ 37. Qxe1 gxf3 $18) 35... Qh6 {[%emt 0:05:01]} 36. Qxd5 {[%emt 0:03:42]} Qe3+ {[%emt 0:01:44]} 37. Kh2 {[%emt 0:00:12]} h4 $2 {[%emt 0:00:52]} (37... Qd3 38. Qxb7+ Kh8) 38. gxh4 {[%emt 0:02:25] White is clearly winning.} Qh6 {[%emt 0:04:34]} 39. g3 {[%emt 0:02:14] Rf5 is the strong threat.} Qe3 {[%emt 0:02:31]} 40. Kg2 {[%emt 0:00:27]} Kh8 {[%emt 0:01:12]} 41. Bc2 {[%emt 0:01:04] Strongly threatening Qd6.} Qh6 {[%emt 0:01:05]} 42. Qd4 {[%emt 0:00:30]} Qg7 {[%emt 0:00:55]} 43. Rf5 {[%emt 0:00:34] Weighted Error Value: White=0.11 (very precise) /Black=0.29 (precise)} 1-0